Cogmind - Beta 13 @@@ ROGUE MODE // 2024.07.23 @ 21:30:14 Player: OctagonalPrism Result: Destroyed by G-34 Mercenary with Small Laser Performance ------------- Evolutions (1) 500 Regions Visited (2) 400 Robots Destroyed (45) 225 Value Destroyed (1051) 1051 Prototype IDs (4) 80 Alien Tech Used (0) 0 Bonus (0) 0 TOTAL SCORE: 2256 Bonus ------- None Cogmind --------- Core Integrity 0/400 Matter 176/300 Energy 43/100 System Corruption 0% Temperature Cool (18) Movement Flying (360) Ox4 Location -9/Materials Parts ------- > --- POWER (1) -------- (None) > --- PROPULSION (3) --- Flight Unit > --- UTILITY (3) ------ Small Storage Unit Medium Armor Plating > --- WEAPON (2) ------- Advanced Beam Cannon Improved Assault Rifle > --- INVENTORY (8) ---- Ion Engine Light Ion Engine Flight Unit Terrain Scan Processor Light Assault Rifle Peak State ------------ > --- POWER ------------ Light Ion Engine > --- PROPULSION ------- Hover Unit Hover Unit Improved Hover Unit > --- UTILITY ---------- Small Storage Unit Structural Scanner Hacking Suite > --- WEAPON ----------- Small Laser Autogun > --- INVENTORY -------- Ion Engine Light Ion Engine Wheel Compact Wheel Hover Unit Hover Unit Medium Laser [Rating: 13] Favorites ----------- Power Light Ion Engine Engine Light Ion Engine Power Core Light Nuclear Core Propulsion Flight Unit Wheel Compact Wheel Hover Unit Hover Unit Flight Unit Flight Unit Utility Small Storage Unit Device Structural Scanner Storage Small Storage Unit Processor Visual Processing Unit Hackware Hacking Suite Protection Medium Armor Plating Weapon Improved Assault Rifle Energy Gun Medium Laser Energy Cannon Advanced Beam Cannon Ballistic Gun Improved Assault Rifle Launcher Rocket Launcher Build | -11 -10 -9 ------- Run | Yrd Mat Mat Slots Evolved 2 | . . 2 Power . | . . . Propulsion 1 | . . 1 Utility 1 | . . 1 Weapon . | . . . Parts Attached 50 | 6 6 38 Power 10 | 1 3 6 Engine 9 | 1 2 6 Core 1 | . 1 . Reactor . | . . . Propulsion 24 | 2 . 22 Treads . | . . . Leg . | . . . Wheel 6 | 2 . 4 Hover 14 | . . 14 Flight 4 | . . 4 Utility 5 | 1 2 2 Device 1 | . . 1 Storage 1 | 1 . . Processor 1 | . 1 . Hackware 1 | . 1 . Protection 1 | . . 1 Artifact . | . . . Weapon 11 | 2 1 8 Energy Gun 5 | 2 1 2 Energy Cannon 2 | . . 2 Ballistic Gun 3 | . . 3 Ballistic Cannon . | . . . Launcher 1 | . . 1 Special Weapon . | . . . Impact Weapon . | . . . Slashing Weapon . | . . . Piercing Weapon . | . . . Special Melee Weapon . | . . . Unidentified Prototypes 2 | . . 2 Parts Lost 22 | . 2 20 Power 5 | . 1 4 Propulsion 9 | . . 9 Utility 2 | . . 2 Weapon 6 | . 1 5 Highest Loss Streak 8 | . 2 8 To Critical Strikes . | . . . Average Slot Usage (%) 82 | . 96 74 Engine 8 | . 6 9 Core 2 | . 7 . Wheel 10 | . 28 1 Hover 10 | . . 15 Flight 8 | . . 13 Device 2 | . . 3 Storage 12 | . 14 11 Processor 3 | . 9 . Hackware 2 | . 2 3 Energy Gun 12 | . 26 4 Energy Cannon 1 | . . 1 Ballistic Gun 6 | . . 10 Naked Turns . | . . . Heaviest Build 15 | 14 14 15 Greatest Support 26 | 26 26 26 Greatest Overweight (x) 4 | . . 4 Average Overweight (x) . | . . . Largest Inventory Capacity 8 | 8 8 8 Average Capacity 7 | 7 8 8 Most Carried 8 | 3 7 8 Average Carried 5 | 1 4 6 Final Capacity 8 | 8 8 8 Final Carried 6 | 1 6 5 Class Distribution -------------------- 54% | Mutant 45% | Scavenger-Mutant Dominant Class ---------------- Mutant | -10/Materials Scavenger-Mutant | -9/Materials Resources | -11 -10 -9 ----------- Run | Yrd Mat Mat Matter Collected 717 | 225 95 397 Remotely . | . . . Salvage Created 1173 | . 492 681 Parts 99 | . 33 66 Haulers Intercepted 1 | . . 1 Recyclers Shooed . | . . . Parts Field Recycled . | . . . Retrieved Matter . | . . . Parts Self-Destructed . | . . . Prevented . | . . . Kills | -11 -10 -9 ------- Run | Yrd Mat Mat Combat Hostiles Destroyed 32 | . 11 21 Guns 20 | . 10 10 Cannons 5 | . . 5 AOE 7 | . 1 6 Classes Destroyed 8 | . 4 4 Builder 2 | . . 2 Hauler 1 | . . 1 Recycler 1 | . . 1 Operator 3 | . 2 1 Watcher 6 | . 2 4 Swarmer 12 | . 3 9 Grunt 17 | . 8 9 Sentry 3 | . . 3 Best Kill Streak 11 | . 4 11 Combat Bots Only 6 | . 4 6 Max Kills in Single Turn 3 | . 1 3 Gunslinging . | . . . Exploded 3 | . 1 3 Melee . | . . . Uniques/NPCs Destroyed . | . . . Combat | -11 -10 -9 -------- Run | Yrd Mat Mat Hostile Shots Fired 234 | . 42 192 Missed 61 | . 11 50 Damage Taken 1877 | . 436 1441 Core 565 | . 162 403 Absorbed by Shields . | . . . Regen/Repaired (Parts) 20 | . . 20 Core Remaining (%) 67 | 100 35 . Volleys Fired 95 | . 38 57 Largest 2 | . 2 2 Hottest 91 | . 90 91 Shots Fired 161 | . 70 91 Gun 131 | . 70 61 Cannon 21 | . . 21 Launcher 9 | . . 9 Special . | . . . Kinetic 45 | . . 45 Thermal 72 | . 39 33 Explosive 9 | . . 9 Electromagnetic 35 | . 31 4 Robot Hit Streak 15 | . 15 8 Robot Miss Streak 4 | . 4 3 Penetration Max . | . . . Secondary Targets 3 | . 2 1 Max Gunslinging Chain 1 | . 1 1 Shots Hit Robots 100 | . 43 57 Core Hits 73 | . 26 47 Critical Kills . | . . . Critical Parts Destroyed 1 | . . 1 Critical Strikes 4 | . 2 2 Burn 3 | . 2 1 Destroy 1 | . . 1 Melee Attacks . | . . . Impact . | . . . Slashing . | . . . Piercing . | . . . Sneak Attacks . | . . . Combat Hostiles . | . . . Follow-up Attacks . | . . . Damage Inflicted 2189 | . 646 1543 Guns 1200 | . 572 628 Cannons 168 | . . 168 Explosions 821 | . 74 747 Melee . | . . . Ramming . | . . . Kinetic 511 | . . 511 Thermal 618 | . 359 259 Explosive 747 | . . 747 Electromagnetic 313 | . 287 26 Impact . | . . . Slashing . | . . . Piercing . | . . . Highest Corruption . | . . . Average Corruption . | . . . Corruption Purged . | . . . Corruption Blocked . | . . . Overload Shots . | . . . Overflow Damage 12 | . 11 1 Projectiles . | . . . Explosions 12 | . 11 1 Melee . | . . . Knockbacks . | . . . Impact . | . . . Kinetic . | . . . Secondary . | . . . Self-Inflicted Damage 38 | . 38 . Shots 1 | . 1 . Rammed . | . . . Targets Rammed . | . . . Kicked . | . . . Crushed . | . . . Highest Temperature 337 | . 337 198 Average Temperature 80 | . 103 50 Received Heat Transfer 591 | . 183 408 Effects 3 | . 3 . Energy Bleed 1 | . 1 . Interference 2 | . 2 . Siege Activations . | . . . Robots Corrupted . | . . . Combat Hostiles . | . . . Parts Fried . | . . . Impact Corruptions . | . . . Robots Melted . | . . . Combat Hostiles . | . . . Parts Melted 3 | . 2 1 Heat Transferred 1681 | . 1087 594 Parts Sabotaged . | . . . Parts Stolen . | . . . Parts Stripped . | . . . Power Chain Reactions 1 | . 1 . Alert | -11 -10 -9 ------- Run | Yrd Mat Mat Peak Influence 391 | . 237 391 Initial 71 | . . 71 Average 166 | . 119 198 Maximum Alert Level 1 | . 1 1 Low Security (%) 63 | 100 76 55 Level 1 36 | . 23 44 Level 2 . | . . . Level 3 . | . . . Level 4 . | . . . Level 5 . | . . . High Security . | . . . Max Security . | . . . Squads Dispatched 5 | . 3 2 Investigation 2 | . 1 1 Extermination . | . . . Reinforcement 3 | . 2 1 Assault . | . . . Garrison . | . . . Intercept . | . . . Searches Triggered . | . . . Construction Impeded . | . . . Haulers Reinforced . | . . . Active Scanning Responses . | . . . Cargo Convoy Interrupts . | . . . Stealth | -11 -10 -9 --------- Run | Yrd Mat Mat Distress Signals 5 | . 1 4 Communications Jammed . | . . . Distress Signals . | . . . Times Spotted 56 | . 18 38 Peak Tracking Total 8 | . 4 8 Tactical Retreats 4 | . 1 3 Traps | -11 -10 -9 ------- Run | Yrd Mat Mat Traps Triggered 3 | . 2 1 Indirectly . | . . . Trap Hack Attempts . | . . . Triggered . | . . . Disarmed . | . . . Reprogrammed . | . . . Reused . | . . . Traps Extracted . | . . . Installed . | . . . Triggered . | . . . Machines | -11 -10 -9 ---------- Run | Yrd Mat Mat Machines Disabled 3 | . 1 2 Max in Single Turn 1 | . 1 1 Machines Repaired . | . . . Machines Dismantled . | . . . Machines Sabotaged . | . . . Overloaded Fab Kills . | . . . Hacking | -11 -10 -9 --------- Run | Yrd Mat Mat Machines Accessed 11 | . 5 6 Terminals 9 | . 5 4 Fabricators . | . . . Repair Stations 1 | . . 1 Recycling Units 1 | . . 1 Scanalyzers . | . . . Garrison Access . | . . . Total Hacks 30 | . 11 19 Successful 20 | . 7 13 Failed 10 | . 4 6 Catastrophic 1 | . . 1 Database Lockouts . | . . . Manual 17 | . 8 9 Terminals 25 | . 11 14 Fabricators . | . . . Repair Stations 2 | . . 2 Recycling Units 3 | . . 3 Scanalyzers . | . . . Garrison Access . | . . . Terminal Hacks 8 | . 3 5 Robot Analysis 1 | . 1 . Prototype ID Bank 1 | . 1 . Terminal Index 1 | . . 1 Unreport Threat 1 | . . 1 Locate Traps 3 | . 1 2 Hauler Manifests 1 | . . 1 Fabricator Hacks . | . . . Repair Station Hacks 2 | . . 2 Scan Component 1 | . . 1 Repair 1 | . . 1 Recycling Unit Hacks 2 | . . 2 Report Inventory 1 | . . 1 Retrieve Components 1 | . . 1 Scanalyzer . | . . . Garrison Access Hacks . | . . . Unauthorized Hacks 8 | . 4 4 Terminals 8 | . 4 4 Assimilate 1 | . . 1 Botnet 7 | . 4 3 Fabricators . | . . . Repair Stations . | . . . Recycling Units . | . . . Scanalyzers . | . . . Garrison Access . | . . . Data Cores Recovered . | . . . Used . | . . . Hacking Detections 8 | . 4 4 Full Trace Events 2 | . . 2 Feedback Events . | . . . Feedback Blocked . | . . . Robot Schematics Acquired . | . . . Robots Built . | . . . Authchips . | . . . Time . | . . . Total Robot Build Rating . | . . . Part Schematics Acquired . | . . . Parts Built . | . . . Authchips . | . . . Time . | . . . Total Part Build Rating . | . . . Parts Repaired 1 | . . 1 Time 32 | . . 32 Parts Recycled . | . . . Recycled Matter . | . . . Retrieved Matter . | . . . Retrieved Components 3 | . . 3 Parts Scanalyzed . | . . . Part Schematics Acquired . | . . . Parts Damaged . | . . . Bothacking | -11 -10 -9 ------------ Run | Yrd Mat Mat Used RIF Installer . | . . . Robots Hacked . | . . . Non-combat . | . . . Combat . | . . . Robot Hacks Applied . | . . . Relay Couplers Released . | . . . Fabnet Peak Effective % . | . . . Robots Rewired . | . . . Allies Hacked . | . . . Hacks Repelled . | . . . Allies | -11 -10 -9 -------- Run | Yrd Mat Mat Total Allies . | . . . Largest Group . | . . . Highest-Rated Group . | . . . Highest-Rated Ally . | . . . Total Orders . | . . . Ally Attacks . | . . . Total Damage . | . . . Kills . | . . . Allies Corrupted . | . . . Allies Melted . | . . . Intel | -11 -10 -9 ------- Run | Yrd Mat Mat Robot Analysis Total 1 | . 1 . Derelict Logs Recovered . | . . . Drone Launches . | . . . Drone Recoveries . | . . . Exploration | -11 -10 -9 ------------- Run | Yrd Mat Mat Turns Passed 1498 | 43 501 954 Spaces Moved 1195 | 38 391 766 Core 9 | 4 . 5 Treads . | . . . Legs . | . . . Wheels 444 | 34 391 19 Hover 458 | . . 458 Flight 284 | . . 284 Fastest Speed 34 | 50 90 34 Average Speed 63 | 86 90 48 Slowest Speed 250 | 100 90 250 Overloaded Moves . | . . . Propulsion Burnouts . | . . . Robots Hopped 4 | . . 4 Cave-ins Triggered . | . . . Exploration Rate (%) 28 | 3 50 33 Regions Visited 2 Branch Regions . Pre-discovered Areas . | . . . Known Exits Taken . | . . . Unknown Exits Taken 2 | 1 1 . Scrap Searched . | . . . Spaces Dug . | . . . Terrain Destroyed 54 | . 2 52 Melee . | . . . Projectile . | . . . AOE 54 | . 2 52 Terrain Rammed . | . . . Walls Destroyed . | . . . Machines Disabled . | . . . Actions | -11 -10 -9 --------- Run | Yrd Mat Mat Total 1766 | 46 468 1252 Wait 398 | . 22 376 Move 1185 | 37 390 758 Hop 4 | . . 4 Pick Up 21 | 3 9 9 Fast Attach 16 | 4 2 10 Attach 21 | 2 1 18 Detach 7 | . . 7 Swap 13 | . 3 10 Drop 6 | . 3 3 Fire 95 | . 38 57 Melee . | . . . Ram . | . . . Kick . | . . . Crush . | . . . Escape Stasis . | . . . Rewire . | . . . Trap . | . . . Miscellaneous . | . . . Route ------- -11/Scrapyard -10/Materials (discovered 2 exits: *Mat x2) -9/Materials History --------- Turn | Location | Event 7 | -11/Scrapyard | Discovered new exit (range 15) 44 | -11/Scrapyard | Entered Materials 304 | -10/Materials | Discovered new exit (range 4) 314 | -10/Materials | Build established: Mutant 382 | -10/Materials | Discovered new exit (range 6) 435 | -10/Materials | Core integrity fell below 50% 545 | -10/Materials | Entered another Materials area 545 | -9/Materials | Evolved 2 slots: Propulsion x1, Utility x1 630 | -9/Materials | Repaired Imp. Hover Unit 927 | -9/Materials | Core integrity fell below 50% 951 | -9/Materials | Lost 8 parts (1p2n1u4w) 1106 | -9/Materials | Lost 3 parts (1p2n) 1106 | -9/Materials | Core integrity fell below 20% 1366 | -9/Materials | Build established: Scavenger-Mutant 1499 | -9/Materials | Destroyed by G-34 Mercenary with Small Laser Last Messages --------------- 5x EMP Trap 4x Alarm Trap Map updated. >>Trojan(Assimilate) Trojan loaded successfully. Testing... System interface override in place. Flight Unit destroyed. Acquired Hvy. EM Pulse Gun. S-10 Pest destroyed. Lgt. Ion Engine destroyed. S-10 Pest destroyed. Switching to secondary target: S-10 Pest. Hover Unit destroyed. Hvy. EM Pulse Gun destroyed. Acquired Flight Unit. Hover Unit destroyed. Acquired Med. Armor Plating. Flight Unit destroyed. G-34 Mercenary destroyed. Map ----- +----------------------------------------------------+ | ?????????? ?????????????????????????# """ /! | | ?????????? ?????????????????????????# | | ?????????? ?????????????????????????# | | ??????????# #????????????????????????## #########+ | | ??????????# #????????????????????????## #????????? | | ??????????+ #?###+###????###?###?????## #????????? | | ??????????# #?# #???## ## ######## #????????? | | ??????????# ### ################### #####????? | | ??????????# +% ##|### #????? | | ??????????# ### ########= *!# = ##????? | | ??????????# #?# #???# #% ! ! =# ##????? | | ??????????# #?########### ## [ +*= ##????? | | ???######## #??# ### # *# ##????? | | ???# # #### """"" ## # %=# ##????? | | ???# """ + + """"" #???# ## ###????? | | ???# """ # # """"" #???# ## ##?????? | | ???# """ # # #???############ ##?????? | | ???# # ###"T"###????????### ### ###????? | | ???# ! # ####?#"""#??######????##### ######## | | ?########## #????#####??# #??????## ####### | | ?# #???????????# #??????## | | ?# #???????????# % #??????## | | ?#^ #############%* #??????## | | ?#^ /gs #??????## % ##### % | | ?#^ = ##########gs= #??????############ | | ?#^ """ #????????#@!= #??????#########?## | | ?+^ """ #????????#!! #????????????????## [ | | ?## """ #????????#! #????????????????## | | ??# #????????######????????????????## | | ??# #??????????????????????????????## = | | ??# """ #??????????????????????????????## ! | | ??# """ #??????????????????????????????## | | ??# """ #??????????????????????????????## | | ??# #??????????????????????????????## | | ??# #??????????????????????????????## | | ??###/######## #??????????????????????????????## | | ??# #???? #??????????????????????????????## | | ??# T #???? #??????????????????????????????## | | ??# #???? #??????????????????????????????## | | ??# #????/#??????????????????????????????## | | ??# #???? ???????????????????????????????## | | ??# /!??? ???????????????????????????????## | | ??########!=?? ???????????????????????????????## | | ??????????!==?????????????????????????????????## | | ??????????? ????????????????????????????????## | | ??????????? ???????????????????????????????## | | ???^?^?????? #??????????????????????????????## | | ?????????????+##??????????????????????????????## | | ??????????????????????????????????????????????## | | ??????????????????????????????????????????????## | +----------------------------------------------------+ Best States ------------- Heat Dissipation 28 Energy Generation 14 Energy Capacity 250 Matter Stores 300 Matter Capacity 300 Sight Range 18 Terrain Scan Density 10 Evasion (%) 63 Offensive Hacking 10 Item Schematics ----------------- None Robot Schematics ------------------ None Fabricated ------------ Nothing Alien Tech Used ----------------- None Achievements -------------- None Challenges ------------ None Game ------ Seed CargoArmorMeganuke Manual? 0 Play Time 00:34:43 Cumulative 22.3 hours Start 2024.07.23 @ 20:56:27 End 2024.07.23 @ 21:30:14 Sessions 1 Manual Loads 0 Difficulty Rogue Special Mode None Game No. 22 Rogue 22 Adventurer 0 Explorer 0 Win Type - Total 0 Types 0/0/0/0/0/0/0/0/0 Lore% 15 Gallery% 24 Achievement% 17 Wizard Run 0 Options --------- Layout 1 ASCII 0 Keyboard 0 Movement Mouse Keybinds 0 Fullscreen 1 Font 16/Terminus Map View 55x38 Zoom Use 0% Tactical HUD 0 Map Filters NONE Filters NONE Steam 1 RUN: ce807e81-54b9-43e8-92ba-ab7c808bcf5f